[Event "1st Festival Galdar 2024"]
[Site "?"]
[Date "2024.09.02"]
[Round "1.1"]
[White "Bibilashvili, Lali"]
[Black "Stefansson, Vignir Vatnar"]
[Result "0-1"]
[Annotator "TA"]
[ECO "A21"]
[WhiteElo "1865"]
[BlackElo "2531"]
[PlyCount "64"]
[EventDate "2024.09.02"]
[EventType "swiss"]
[SourceTitle "playchess.com"]
[Source "ChessBase"]
[SourceQuality "1"]
[TimeControl "5400+30"]

{[%evp 13,64,8,17,-31,-34,-17,0,-48,-22,-45,-32,-66,-52,-84,11,-58,-67,-75,-62,-112,-111,-210,-174,-191,-189,-213,-184,-343,-339,-351,-325,-289,-225,-493,-484,-461,-343,-611,-660,-622,-613,-631,-625,-976,-616,-1618,-1617,-1933,-1932,-3162,-3021,-29983,-29984]} 1. Nf3 {[%emt 0:00:06]} f5 {[%emt 0:00:45]} 2. g3 {[%emt 0:01:52]} Nf6 {[%emt 0:00:15]} 3. Bg2 {[%emt 0:00:06]} d6 {[%emt 0:00:11]} 4. c4 {[%emt 0:00:39]} e5 {[%emt 0:00:17]} 5. d3 {[%emt 0:00:23]} Be7 {[%emt 0:00:17]} 6. Nc3 {[%emt 0:00:19]} O-O {[%emt 0:00:17]} 7. O-O {[%emt 0:00:04]} Qe8 {[%emt 0:01:27]} 8. Nd5 {[%emt 0:02:45]} (8. b4 $11 {was preferrable.}) 8... Nxd5 $15 {[%emt 0:02:37]} 9. cxd5 {[%emt 0:00:05]} Qh5 {[%emt 0:00:09]} 10. b4 {[%emt 0:10:26]} (10. Bd2 $11) 10... Nd7 {[%emt 0:01:33]} 11. e4 {[%emt 0:04:58][%cal Of3g5]} a5 {[%emt 0:02:21]} 12. Bd2 {[%emt 0:03:46]} axb4 {[%emt 0:00:33]} 13. Bxb4 {[%emt 0:00:04]} f4 {[%emt 0:00:29]} (13... fxe4 $17 14. dxe4 Nc5) 14. Nd2 {[%emt 0:15:34]} (14. d4 $11) 14... Qh6 {[%emt 0:01:09]} 15. Qc2 {[%emt 0:01:10]} Bd8 {[%emt 0:01:03]} 16. Rfe1 {[%emt 0:07:53] Black continues to play with concentration.} ({Better is} 16. g4 $15) 16... Nf6 $17 {[%emt 0:01:28] [#] ...fxg3 is the strong threat.} 17. f3 {[%emt 0:48:50]} (17. Nf3 $17) 17... c5 $19 {[%emt 0:05:53]} 18. Bc3 {[%emt 0:00:00]} b5 $36 {[%emt 0:00:13][%mdl 2048] Black has strong initiative.} 19. Nf1 {[%emt 0:00:00]} Bb6 {[%emt 0:00:30] Threatens to win with ...c4+.} 20. Red1 $2 {[%emt 0:00:00]} (20. gxf4 {was called for.} exf4 21. Nd2) 20... fxg3 {[%emt 0:03:13]} 21. Nxg3 {[%emt 0:00:00]} Nh5 {[%emt 0:01:36]} 22. Nxh5 {[%emt 0:00:00]} Qxh5 {[%emt 0:00:07]} 23. a4 $2 {[%emt 0:00:00]} (23. Kh1) 23... b4 {[%emt 0:00:24]} 24. Be1 {[%emt 0:00:00]} Bh3 {[%emt 0:00:14]} 25. Qe2 $2 {[%emt 0:00:00]} (25. Bxh3 Qxh3 26. Qg2) 25... c4+ {[%emt 0:03:49]} 26. Kh1 {[%emt 0:00:00] White is weak on the dark squares} c3 {[%emt 0:00:52] aiming for ...Bxg2+.} 27. Rdb1 {[%emt 0:00:00]} Bc5 {[%emt 0:01:41] And now ...Bxg2+ would win.} 28. a5 {[%emt 0:00:07]} Rf6 {[%emt 0:01:46]} 29. Ra2 {[%emt 0:03:59]} Rg6 {[%emt 0:00:32]} 30. Qf1 {[%emt 0:01:27] [#]} Rxa5 $3 {[%emt 0:00:40][%mdl 512]} 31. Rc2 {[%emt 0:00:49]} (31. Rxa5 Bxg2+) 31... Rxg2 {[%emt 0:00:32]} 32. Rxg2 {[%emt 0:00:08]} Ra2 {[%emt 0:00:15] Weighted Error Value: White=1.47/Black=0.32.  Mistake:       	White=7     	Black=1      Inaccurate:     	White=2     	Black=1      OK:         	White=2     	Black=7      Best:        	White=1     	Black=2} 0-1

[Event "1st Festival Galdar 2024"]
[Site "?"]
[Date "2024.09.02"]
[Round "1.2"]
[White "Arizmendi Martinez, Julen Luis"]
[Black "Almeida Sanchez, Juan Sebastian"]
[Result "1-0"]
[Annotator "TA"]
[ECO "B48"]
[WhiteElo "2517"]
[BlackElo "1863"]
[PlyCount "61"]
[EventDate "2024.09.02"]
[EventType "swiss"]
[SourceTitle "playchess.com"]
[Source "ChessBase"]
[SourceQuality "1"]
[TimeControl "5400+30"]

{[%evp 14,61,19,18,67,27,117,118,127,80,77,89,88,85,111,62,99,99,97,47,46,48,59,28,52,54,69,37,44,-4,142,141,161,156,266,167,271,261,343,317,322,322,288,292,286,294,558,559,558,547]} 1. e4 {[%emt 0:00:05]} c5 {[%emt 0:00:45]} 2. Nf3 {[%emt 0:00:35]} Nc6 {[%emt 0:00:26]} 3. d4 {[%emt 0:02:27]} cxd4 {[%emt 0:01:10]} 4. Nxd4 {[%emt 0:00:07]} Qc7 {[%emt 0:00:55]} 5. Nc3 {[%emt 0:06:27]} e6 {[%emt 0:00:32]} 6. a3 {[%emt 0:02:41]} a6 {[%emt 0:02:46]} 7. Be3 {[%emt 0:06:14]} Nf6 {[%emt 0:03:22]} 8. f4 {[%emt 0:08:28]} Nxd4 {[%emt 0:04:29]} (8... d6 $11) 9. Qxd4 {[%emt 0:00:13]} b6 {[%emt 0:23:23]} 10. e5 $16 {[%emt 0:24:04]} Bc5 {[%emt 0:20:22] White is better.} 11. Qd3 {[%emt 0:00:10]} (11. Qd2 $142 Ng4 12. Bxc5 bxc5 13. Be2) 11... Ng4 {[%emt 0:02:28]} 12. Bxc5 {[%emt 0:00:16]} Qxc5 {[%emt 0:00:14]} 13. Qf3 {[%emt 0:15:09][%csl LRa8,LRg4][%cal Of3g4] Dodges Qf2+} h5 {[%emt 0:03:23][%cal Oc8b7]} 14. Bd3 {[%emt 0:00:25]} (14. Qxa8 $2 Qf2+ 15. Kd1 Ne3+ 16. Kc1 Qxc2#) ({Better is} 14. Ne4 $16 Qe3+ 15. Be2 Qxf3 16. Bxf3) 14... Qe3+ {[%emt 0:06:45]} 15. Qxe3 {[%emt 0:00:55]} Nxe3 {[%emt 0:00:09]} 16. Be4 {[%emt 0:04:46]} (16. Kd2 $1 $16 {[%cal Rd2e3]} Nf5 (16... Nxg2 $2 {loses.} 17. Be4 $18) 17. Bxf5 exf5 18. Nd5) 16... Ra7 $14 {[%emt 0:02:15]} 17. Ke2 {[%emt 0:01:13]} Ng4 {[%emt 0:14:21]} 18. Rad1 {[%emt 0:05:43]} Rc7 {[%emt 0:04:14]} 19. h3 {[%emt 0:02:36]} Nh6 {[%emt 0:01:00]} 20. Rd6 {[%emt 0:01:16]} b5 $1 {[%emt 0:01:02] [#]} 21. g4 {[%emt 0:00:17]} Ke7 {[%emt 0:04:14] [#] Black is weak on the dark squares} (21... f6 $1 $11 {remains equal.}) 22. g5 $1 $36 {[%emt 0:00:51][%mdl 2048] White is in control. White is much more active.} ({Don't play} 22. gxh5 $6 f6 $11) 22... Ng8 {[%emt 0:01:24]} 23. Rhd1 {[%emt 0:01:13][%cal Bh1d1,Bd1d4,Bd4a4][%mdl 32]} f5 {[%emt 0:00:27]} (23... Ke8 $16 24. Rb6 f6) 24. Bf3 {[%emt 0:01:31]} g6 {[%emt 0:00:02]} (24... Ke8 $142 25. Rb6 Ne7) 25. R1d4 $18 {[%emt 0:00:57]} Rh7 {[%emt 0:00:41]} 26. a4 {[%emt 0:03:10]} bxa4 {[%emt 0:00:52]} 27. Rxa4 {[%emt 0:00:11]} Ke8 {[%emt 0:00:19]} 28. Rb4 {[%emt 0:00:19]} Ne7 {[%emt 0:01:12]} 29. Rb8 {[%emt 0:00:28]} Nc6 $2 {[%emt 0:00:36]} (29... Rh8 {was called for.} 30. Kd3 (30. Rxa6 Kf7 $18) 30... Ra7) 30. Bxc6 {[%emt 0:00:21]} dxc6 {[%emt 0:00:16]} 31. Rxe6+ {[%emt 0:00:43] Weighted Error Value: White=0.20 (precise) /Black=0.57.  Mistake:       	White=4     	Black=5      Inaccurate:     	White=4     	Black=3      OK:         	White=11    	Black=6      Strong:       	White=1     	Black=1} 1-0

[Event "1st Festival Galdar 2024"]
[Site "?"]
[Date "2024.09.02"]
[Round "1.3"]
[White "Almeida Cubas, Mirella"]
[Black "Sumets, Andrey"]
[Result "0-1"]
[Annotator "TA"]
[ECO "A25"]
[WhiteElo "1861"]
[BlackElo "2517"]
[PlyCount "56"]
[EventDate "2024.09.02"]
[EventType "swiss"]
[SourceTitle "playchess.com"]
[Source "ChessBase"]
[SourceQuality "1"]
[TimeControl "5400+30"]

{[%evp 9,56,14,18,19,20,18,21,20,22,-9,0,0,0,-151,-149,-132,-137,-181,-179,-144,-151,-308,-360,-387,-369,-813,-800,-895,-902,-1016,-1036,-1029,-1014,-933,-527,-490,-483,-699,-663,-1231,-1181,-1225,-1194,-29995,-29996,-29996,-29996,-29996,-835]} 1. c4 {[%emt 0:00:03]} e5 {[%emt 0:00:09]} 2. Nc3 {[%emt 0:00:19]} Nc6 {[%emt 0:00:22]} 3. g3 {[%emt 0:00:27]} Bc5 {[%emt 0:00:08]} 4. Bg2 {[%emt 0:01:07]} d6 {[%emt 0:00:08]} 5. e3 {[%emt 0:01:07]} Bf5 {[%emt 0:00:22]} 6. d3 {[%emt 0:03:15][%cal Bd2d3,Bd3d4][%mdl 32]} Qd7 {[%emt 0:01:01]} 7. a3 {[%emt 0:01:54]} a5 {[%emt 0:00:44]} 8. Nge2 {[%emt 0:00:29] The position is equal.} Bh3 {[%emt 0:05:27]} 9. O-O {[%emt 0:01:21]} h5 {[%emt 0:06:35]} 10. d4 {[%emt 0:08:15]} Bb6 {[%emt 0:00:15]} 11. Re1 $2 {[%emt 0:07:40] [#]} ({White should play} 11. f3 $11) 11... Bxg2 $17 {[%emt 0:02:55]} 12. Kxg2 {[%emt 0:00:29]} h4 {[%emt 0:00:32]} 13. Rh1 {[%emt 0:01:52]} h3+ {[%emt 0:01:11]} 14. Kf1 {[%emt 0:01:33]} Nf6 {[%emt 0:07:08] Black is more active.} 15. f3 $2 {[%emt 0:10:10]} (15. Nd5 $17) 15... Qf5 $19 {[%emt 0:02:29]} 16. f4 {[%emt 0:05:05]} O-O {[%emt 0:02:59] And now ...exd4 would win.} 17. Rb1 $2 {[%emt 0:04:15]} (17. d5 Ne7 18. Ng1) 17... exd4 {[%emt 0:06:43]} 18. exd4 {[%emt 0:02:31]} Rfe8 {[%emt 0:03:30]} 19. b4 {[%emt 0:03:23]} axb4 {[%emt 0:00:07]} 20. axb4 {[%emt 0:00:15]} Qh5 {[%emt 0:06:27]} 21. Ng1 {[%emt 0:07:31] Prevents Qf3+} Qxd1+ {[%emt 0:01:24]} 22. Nxd1 {[%emt 0:00:12]} Bxd4 {[%emt 0:00:40]} 23. Ne2 {[%emt 0:02:24]} (23. Nxh3 $142 Ra2 24. b5) 23... Ra2 {[%emt 0:01:10]} 24. Nxd4 {[%emt 0:02:54]} Nxd4 {[%emt 0:00:07]} 25. Bb2 {[%emt 0:02:26] White is weak on the light squares} Nf3 {[%emt 0:00:40] [#] ( -> ...Nd2+). A dynamic duo of knights.} 26. Ra1 {[%emt 0:02:50]} Nd2+ {[%emt 0:00:20] Black mates.} 27. Kg1 {[%emt 0:01:22]} Rxa1 {[%emt 0:00:06]} 28. Bxa1 {[%emt 0:00:10]} Re1+ {[%emt 0:00:08] White did not feel at home in the position after the opening.   Weighted Error Value: White=1.20/Black=0.19 (very precise) .  Mistake:       	White=4     	---        Inaccurate:     	White=3     	---        OK:         	White=4     	Black=5      Best:        	---       	Black=4} (28... Re2 $142 29. Ne3 Nfe4 (29... Rxe3 $2 30. Bc3 $19) 30. g4 Nf3+ 31. Kf1 Rf2#) 0-1

[Event "1st Festival Galdar 2024"]
[Site "?"]
[Date "2024.09.02"]
[Round "1.4"]
[White "Beerdsen, Thomas"]
[Black "Bangiev, Katharina"]
[Result "1-0"]
[Annotator "TA"]
[ECO "B31"]
[WhiteElo "2509"]
[BlackElo "1831"]
[PlyCount "51"]
[EventDate "2024.09.02"]
[EventType "swiss"]
[SourceTitle "playchess.com"]
[Source "ChessBase"]
[SourceQuality "1"]
[TimeControl "5400+30"]

{[%evp 22,51,72,60,81,79,91,86,86,88,106,118,149,137,147,144,333,327,301,241,437,252,407,399,960,920,1126,1110,2181,2091,1709,1070]} 1. e4 {[%emt 0:00:03]} c5 {[%emt 0:00:06]} 2. Nf3 {[%emt 0:00:14]} Nc6 {[%emt 0:00:07]} 3. Bb5 {[%emt 0:00:21]} g6 {[%emt 0:00:15]} 4. O-O {[%emt 0:00:11]} Bg7 {[%emt 0:00:05]} 5. c3 {[%emt 0:00:05]} Nf6 {[%emt 0:00:34][%cal Bg8f6,Bf6e8,Be8c7,Bc7e6][%mdl 32]} 6. Re1 {[%emt 0:00:06]} O-O {[%emt 0:00:36]} 7. h3 {[%emt 0:00:09]} d5 {[%emt 0:04:18]} 8. e5 {[%emt 0:00:20]} Ne8 {[%emt 0:02:53]} 9. d4 {[%emt 0:00:26]} cxd4 {[%emt 0:00:56]} 10. cxd4 {[%emt 0:00:08]} Nc7 {[%emt 0:01:59]} 11. Bxc6 {[%emt 0:00:26]} bxc6 {[%emt 0:00:02]} 12. Nc3 {[%emt 0:00:39]} Rb8 {[%emt 0:03:56]} 13. b3 {[%emt 0:00:25]} h6 {[%emt 0:02:11]} 14. Na4 {[%emt 0:02:04] White is more active.} Ne6 {[%emt 0:01:43] White is better.} 15. Ba3 {[%emt 0:00:23]} Ba6 {[%emt 0:01:34]} 16. Rc1 {[%emt 0:01:26]} Qd7 {[%emt 0:02:02]} 17. Nc5 {[%emt 0:00:30]} Nxc5 {[%emt 0:00:18]} 18. Bxc5 {[%emt 0:00:14]} Rfc8 $2 {[%emt 0:01:33] [#]} (18... Bc8 $16 19. Qd2 Rb7) 19. e6 $1 $18 {[%emt 0:00:14][%mdl 512]} fxe6 {[%emt 0:00:48]} 20. Qc2 {[%emt 0:00:37]} g5 {[%emt 0:04:23]} (20... Rf8 21. Qxg6 Rf6) 21. Qg6 {[%emt 0:00:17]} (21. Ne5 $142 Qe8 22. Ng6 (22. Bxa7 Rb7 $18)) 21... Rf8 $2 {[%emt 0:03:17]} (21... Qe8 22. Qxe6+ (22. Rxe6 Qxg6 23. Rxg6 Kf7 $11) 22... Qf7 23. Qxf7+ (23. Bxe7 Qxe6 24. Rxe6 Bd3 $18) (23. Qxe7 Rb7 $18) (23. Bxa7 Qxe6 24. Rxe6 Rb7 $18) 23... Kxf7 24. Rxe7+ (24. Bxe7 Rb7 $18) 24... Kg8) 22. Ne5 {[%emt 0:00:07]} (22. Qxe6+ Qxe6 23. Rxe6 Rfe8 24. Rxc6 (24. Bxe7 Rb7 $11) (24. Bxa7 Ra8 $18) 24... Be2 25. Bxa7 Rb7 $18) (22. Rxe6 Rf6 23. Rxf6 (23. Rxe7 $2 Qxe7 $19) 23... exf6 $18) 22... Qc7 {[%emt 0:05:49] [#]} (22... Qe8 23. Qxe6+ Kh7) 23. Qxe6+ {[%emt 0:00:12] White is clearly winning.} Kh7 {[%emt 0:00:42]} 24. Bxe7 {[%emt 0:00:41]} Rfe8 {[%emt 0:07:12]} 25. Qg6+ {[%emt 0:00:05]} Kg8 {[%emt 0:01:02]} 26. Bd6 {[%emt 0:00:05] Black did not feel at home in the position after the opening.   Weighted Error Value: White=0.34/Black=0.68.  Loses game:     	---       	Black=1      Mistake:       	White=1     	Black=3      OK:         	White=4     	Black=3      Best:        	White=2     	---        Brilliant:      	White=1     	---} 1-0

[Event "1st Festival Galdar 2024"]
[Site "?"]
[Date "2024.09.02"]
[Round "1.5"]
[White "Rivero Reyes, Alejandro"]
[Black "Zwirs, Nico"]
[Result "0-1"]
[Annotator "TA"]
[ECO "B68"]
[WhiteElo "1820"]
[BlackElo "2485"]
[PlyCount "82"]
[EventDate "2024.09.02"]
[EventType "swiss"]
[SourceTitle "playchess.com"]
[Source "ChessBase"]
[SourceQuality "1"]
[TimeControl "5400+30"]

{[%evp 20,82,45,-45,-36,-82,-76,-98,14,-14,0,0,0,0,10,-16,25,23,20,0,0,0,0,0,0,0,0,4,8,0,24,-18,-18,-41,-4,-20,-14,-25,-13,-31,-10,-44,-41,-114,-106,-111,-117,-104,-105,-364,-369,-376,-369,-533,-629,-647,-574,-653,-651,-624,-568,-529,-450,-943,-906]} 1. e4 {[%emt 0:00:01]} c5 {[%emt 0:00:02]} 2. Nf3 {[%emt 0:00:08]} d6 {[%emt 0:00:07]} 3. d4 {[%emt 0:00:49]} cxd4 {[%emt 0:00:06]} 4. Nxd4 {[%emt 0:00:03]} Nf6 {[%emt 0:00:11]} 5. Nc3 {[%emt 0:00:06]} a6 {[%emt 0:01:05]} 6. Bg5 {[%emt 0:01:01]} Nc6 {[%emt 0:03:51]} 7. Qd2 {[%emt 0:13:20]} e6 {[%emt 0:00:58]} 8. O-O-O {[%emt 0:03:43]} Bd7 {[%emt 0:04:32]} 9. f4 {[%emt 0:09:05]} Be7 {[%emt 0:00:42]} 10. Nb3 {[%emt 0:18:51]} b5 {[%emt 0:03:44]} 11. Bd3 {[%emt 0:07:55]} (11. a3 $14) 11... b4 {[%emt 0:01:54]} 12. Ne2 {[%emt 0:09:00]} (12. Na4 $15 {might be stronger.}) 12... Qb6 $17 {[%emt 0:00:58]} 13. f5 {[%emt 0:01:43]} e5 {[%emt 0:04:10]} (13... a5 $17 {aiming for ...a4.} 14. Qe3 Qxe3+ 15. Bxe3 Ne5) 14. Qe3 {[%emt 0:06:03]} Qxe3+ {[%emt 0:12:03]} 15. Bxe3 {[%emt 0:00:11]} Ng4 {[%emt 0:00:13]} 16. Bg1 {[%emt 0:07:20]} h5 {[%emt 0:00:58]} 17. Nd2 {[%emt 0:01:05]} Bg5 {[%emt 0:07:03]} 18. Kb1 {[%emt 0:03:10]} Ne3 {[%emt 0:02:30] Repels Nc4} 19. Nf3 {[%emt 0:04:25]} Bh6 {[%emt 0:00:34]} ({But not} 19... Nxd1 $6 20. Nxg5 Ke7 21. Kc1 $14) 20. Bxe3 {[%emt 0:01:30]} Bxe3 {[%emt 0:00:05]} 21. Bc4 {[%emt 0:00:20]} Ke7 {[%emt 0:02:42]} 22. Rd3 {[%emt 0:01:16]} Bc5 {[%emt 0:00:11]} 23. Nc1 {[%emt 0:03:22]} Na5 {[%emt 0:10:20]} 24. Bd5 {[%emt 0:00:53]} Ra7 {[%emt 0:06:45]} 25. Nb3 {[%emt 0:01:16]} Nxb3 {[%emt 0:00:07]} 26. axb3 {[%emt 0:00:35]} a5 {[%emt 0:09:19][%cal Ba6a5,Ba5a4][%mdl 32]} 27. Nd2 {[%emt 0:04:13]} h4 {[%emt 0:04:01]} 28. Nc4 {[%emt 0:00:32]} a4 {[%emt 0:05:40]} 29. Rhd1 {[%emt 0:01:14]} Bb5 {[%emt 0:01:18]} 30. R3d2 {[%emt 0:01:36]} Rc8 {[%emt 0:02:15]} 31. Re1 {[%emt 0:00:16]} (31. Rd3 $15) 31... a3 {[%emt 0:02:45]} 32. bxa3 {[%emt 0:00:54]} Bxc4 {[%emt 0:00:04]} ({And not} 32... bxa3 33. c3 $16) 33. Bxc4 {[%emt 0:00:28]} Rxa3 {[%emt 0:00:01] [#] Hoping for ...Rca8.} ({Worse is} 33... bxa3 34. c3 $16) 34. Rd3 $2 {[%emt 0:00:30][%mdl 8192] This costs White the game.} (34. Ree2 $17) 34... Bd4 $19 {[%emt 0:01:35]} 35. Rxd4 {[%emt 0:00:30]} exd4 {[%emt 0:00:01][%mdl 4096] Endgame. KRR-KRB} 36. Kc1 {[%emt 0:00:32]} (36. Re2 {is a better defense.}) 36... Ra1+ {[%emt 0:00:06] Black is clearly winning.} 37. Kd2 {[%emt 0:00:05]} Rxe1 {[%emt 0:00:04]} 38. Kxe1 {[%emt 0:00:08]} Kf6 {[%emt 0:00:09][%cal Oc8c4]} 39. Kd2 {[%emt 0:00:10]} Rc7 {[%emt 0:00:27]} 40. Ke2 {[%emt 0:01:10]} g6 {[%emt 0:02:25]} 41. g4 {[%emt 0:00:58]} (41. Bd3 $142) 41... hxg3 {[%emt 0:00:11] Weighted Error Value: White=0.53/Black=0.13 (very precise) .  Loses game:     	White=1     	---        Mistake:       	White=4     	Black=1      Inaccurate:     	White=4     	Black=2      OK:         	White=7     	Black=11     Best:        	White=3     	Black=2} 0-1

[Event "1st Festival Galdar 2024"]
[Site "?"]
[Date "2024.09.02"]
[Round "1.6"]
[White "Fromm, Marius"]
[Black "Gonzalez Perdomo, Sergio"]
[Result "1-0"]
[Annotator "TA"]
[ECO "B11"]
[WhiteElo "2477"]
[BlackElo "1810"]
[PlyCount "63"]
[EventDate "2024.09.02"]
[EventType "swiss"]
[SourceTitle "playchess.com"]
[Source "ChessBase"]
[SourceQuality "1"]
[TimeControl "5400+30"]

{[%evp 10,63,30,22,45,7,23,9,25,18,27,18,19,15,26,17,21,11,11,8,15,0,0,0,0,0,13,3,8,6,16,12,21,8,15,0,0,0,12,10,10,14,284,279,464,470,757,414,392,319,1588,1531,1343,1334,1065,1030]} 1. e4 {[%emt 0:00:04]} c6 {[%emt 0:00:10]} 2. Nc3 {[%emt 0:01:10]} d5 {[%emt 0:00:16]} 3. Nf3 {[%emt 0:00:03]} dxe4 {[%emt 0:01:37]} 4. Nxe4 {[%emt 0:00:06]} Nf6 {[%emt 0:00:58]} 5. Qe2 {[%emt 0:00:11]} Nxe4 {[%emt 0:01:17]} 6. Qxe4 {[%emt 0:00:04]} Nd7 {[%emt 0:01:24]} 7. c3 {[%emt 0:00:39]} Nf6 {[%emt 0:00:20]} 8. Qc2 {[%emt 0:00:07]} g6 {[%emt 0:01:32] The position is equal.} 9. d4 {[%emt 0:00:05]} Bf5 {[%emt 0:00:51]} 10. Bd3 {[%emt 0:01:00]} Bxd3 {[%emt 0:00:24]} 11. Qxd3 {[%emt 0:00:05]} Bg7 {[%emt 0:00:48]} 12. O-O {[%emt 0:00:06]} O-O {[%emt 0:01:16]} 13. Bf4 {[%emt 0:03:00]} c5 {[%emt 0:01:22]} 14. Rfe1 {[%emt 0:01:07]} e6 {[%emt 0:04:45]} 15. Rad1 {[%emt 0:01:37]} cxd4 {[%emt 0:01:25]} 16. Nxd4 {[%emt 0:00:28]} Qb6 {[%emt 0:04:18]} 17. Qe2 {[%emt 0:06:13]} a6 {[%emt 0:04:01]} 18. c4 {[%emt 0:07:06]} Rfd8 {[%emt 0:04:49]} 19. Be5 {[%emt 0:00:08]} Rac8 {[%emt 0:01:43]} 20. b3 {[%emt 0:00:24]} Nh5 {[%emt 0:10:38]} 21. Bxg7 {[%emt 0:06:07]} Nxg7 {[%emt 0:00:14]} 22. Qb2 {[%emt 0:04:16]} Qc5 {[%emt 0:09:52]} ({Don't go for} 22... Rxc4 $2 23. Nxe6 (23. Nf5 exf5 24. Rxd8+ Qxd8 $18) 23... Nxe6 24. Rxd8+ Qxd8 25. bxc4 $18) 23. Nf3 {[%emt 0:01:03][%cal Bd4f3,Bf3e5,Be5f7][%mdl 32]} Nf5 {[%emt 0:01:37]} 24. g4 {[%emt 0:06:53]} Ng7 {[%emt 0:08:27]} 25. Qf6 {[%emt 0:02:43]} Rf8 {[%emt 0:05:10][%mdl 8192] [#] A mistake that costs the game.} (25... Qc7 $11 {and Black is okay.}) 26. Ne5 $1 $18 {[%emt 0:03:22]} Qc7 $2 {[%emt 0:05:00]} (26... Qa5 {might work better.} 27. Nd7 h5) 27. Rd7 {[%emt 0:01:30]} Qa5 {[%emt 0:01:08]} (27... Ne8 $142) 28. Re3 {[%emt 0:03:09][%cal Re5f7]} Ne8 {[%emt 0:03:40]} 29. Qe7 {[%emt 0:01:40][%cal Re5f7]} Qxa2 $2 {[%emt 0:08:28]} (29... Qc5 30. Rxb7 Qxe7 31. Rxe7 Nf6) 30. Nxf7 {[%emt 0:00:45] [#] White wants to mate with Nh6+. White is clearly winning.} Qa1+ {[%emt 0:00:50]} 31. Kg2 {[%emt 0:00:03]} Qg7 {[%emt 0:00:21] Inhibits Nh6+.} 32. Rf3 {[%emt 0:00:46] Weighted Error Value: White=0.33/Black=0.35.  Loses game:     	---       	Black=1      Mistake:       	---       	Black=3      Inaccurate:     	White=2     	---        OK:         	White=8     	Black=9      Best:        	---       	Black=3      Strong:       	White=1     	---} 1-0